[Event "*** Titled Tuesday Blitz"]
[Site "Chess.com"]
[Date "2020.10.27"]
[Round "5"]
[White "Lagmantr"]
[Black "Lady_Nika"]
[Result "1-0"]
[WhiteElo "2748"]
[BlackElo "2448"]
[TimeControl "180+1"]
[EndTime "10:53:08 PDT"]
[Termination "Lagmantr won by resignation"]

1. e4 {[%clk 0:02:57.5]} 1... e6 {[%clk 0:02:59.3]} 2. d4 {[%clk 0:02:56.7]}
2... d5 {[%clk 0:02:59.2]} 3. Nc3 {[%clk 0:02:57.2]} 3... Nf6 {[%clk 0:02:58.8]}
4. e5 {[%clk 0:02:56.4]} 4... Nfd7 {[%clk 0:02:58]} 5. f4 {[%clk 0:02:56.4]}
5... c5 {[%clk 0:02:58]} 6. Nf3 {[%clk 0:02:56.2]} 6... Nc6 {[%clk 0:02:58.2]}
7. Be3 {[%clk 0:02:56.1]} 7... cxd4 {[%clk 0:02:57.2]} 8. Nxd4 {[%clk 0:02:57]}
8... Bc5 {[%clk 0:02:56.6]} 9. Qd2 {[%clk 0:02:56.7]} 9... O-O {[%clk
0:02:55.7]} 10. O-O-O {[%clk 0:02:55.6]} 10... Nxd4 {[%clk 0:02:55.7]} 11. Bxd4
{[%clk 0:02:55.3]} 11... Bxd4 {[%clk 0:02:56.1]} 12. Qxd4 {[%clk 0:02:53.5]}
12... a6 {[%clk 0:02:56.3]} 13. Bd3 {[%clk 0:02:50.5]} 13... b5 {[%clk
0:02:54.9]} 14. Ne2 {[%clk 0:02:49.5]} 14... Qb6 {[%clk 0:02:53.7]} 15. Kb1
{[%clk 0:02:46.8]} 15... Qxd4 {[%clk 0:02:52.2]} 16. Nxd4 {[%clk 0:02:47.7]}
16... Bb7 {[%clk 0:02:51.9]} 17. g4 {[%clk 0:02:40.8]} 17... Rac8 {[%clk
0:02:50.6]} 18. Rhg1 {[%clk 0:02:37.6]} 18... Nc5 {[%clk 0:02:50]} 19. Rg3
{[%clk 0:02:37.4]} 19... Rfd8 {[%clk 0:02:48.7]} 20. c3 {[%clk 0:02:35.6]} 20...
Nxd3 {[%clk 0:02:43.1]} 21. Rdxd3 {[%clk 0:02:35.1]} 21... Rc7 {[%clk
0:02:42.8]} 22. a3 {[%clk 0:02:19.1]} 22... Rdc8 {[%clk 0:02:42.5]} 23. Kc2
{[%clk 0:02:19]} 23... Rc4 {[%clk 0:02:39.3]} 24. Kd2 {[%clk 0:02:17]} 24... a5
{[%clk 0:02:32.7]} 25. b4 {[%clk 0:02:11.8]} 25... axb4 {[%clk 0:02:31.7]} 26.
cxb4 {[%clk 0:01:54]} 26... Rc1 {[%clk 0:02:25.7]} 27. Rc3 {[%clk 0:01:51.3]}
27... R8xc3 {[%clk 0:02:16]} 28. Rxc3 {[%clk 0:01:51.6]} 28... Rxc3 {[%clk
0:02:16.2]} 29. Kxc3 {[%clk 0:01:52.1]} 29... Ba6 {[%clk 0:02:16.7]} 30. Nb3
{[%clk 0:01:51.7]} 30... Kf8 {[%clk 0:02:14.9]} 31. Kd4 {[%clk 0:01:51.6]} 31...
f6 {[%clk 0:02:13.5]} 32. Kc5 {[%clk 0:01:48.7]} 32... fxe5 {[%clk 0:02:11.8]}
33. fxe5 {[%clk 0:01:48.9]} 33... Kf7 {[%clk 0:02:12]} 34. Nd4 {[%clk
0:01:47.2]} 34... Bc8 {[%clk 0:02:11.3]} 35. Kxb5 {[%clk 0:01:44.5]} 35... Kg6
{[%clk 0:02:09.2]} 36. Nf3 {[%clk 0:01:43.8]} 36... h5 {[%clk 0:02:08.5]} 37. h3
{[%clk 0:01:43.3]} 37... Bd7+ {[%clk 0:02:04.7]} 38. Kc5 {[%clk 0:01:42.6]}
38... Ba4 {[%clk 0:02:04.2]} 39. b5 {[%clk 0:01:41]} 39... Bd1 {[%clk
0:02:03.1]} 40. b6 {[%clk 0:01:40.9]} 40... Bxf3 {[%clk 0:02:01.2]} 41. b7
{[%clk 0:01:40.4]} 1-0

[Event "*** Titled Tuesday Blitz"]
[Site "Chess.com"]
[Date "2020.10.27"]
[Round "5"]
[White "korbul"]
[Black "Tenamu"]
[Result "1-0"]
[WhiteElo "2594"]
[BlackElo "2403"]
[TimeControl "180+1"]
[EndTime "10:53:10 PDT"]
[Termination "korbul won by resignation"]

1. e4 {[%clk 0:03:00.9]} 1... e6 {[%clk 0:02:51.3]} 2. d4 {[%clk 0:02:57.9]}
2... d5 {[%clk 0:02:50.7]} 3. Nc3 {[%clk 0:02:53.5]} 3... Nf6 {[%clk 0:02:48.8]}
4. Bg5 {[%clk 0:02:52.6]} 4... Bb4 {[%clk 0:02:47.4]} 5. Ne2 {[%clk 0:02:45.2]}
5... dxe4 {[%clk 0:02:44.9]} 6. a3 {[%clk 0:02:44]} 6... Bxc3+ {[%clk 0:02:41]}
7. Nxc3 {[%clk 0:02:42.8]} 7... Nc6 {[%clk 0:02:37.9]} 8. Bb5 {[%clk 0:02:41.7]}
8... Bd7 {[%clk 0:02:33.5]} 9. Nxe4 {[%clk 0:02:33.3]} 9... Qe7 {[%clk
0:02:32.4]} 10. c3 {[%clk 0:02:22.4]} 10... O-O-O {[%clk 0:02:31.5]} 11. O-O
{[%clk 0:02:19.9]} 11... h6 {[%clk 0:02:31.1]} 12. Bxf6 {[%clk 0:02:19.6]} 12...
gxf6 {[%clk 0:02:32]} 13. Nc5 {[%clk 0:02:18.6]} 13... Be8 {[%clk 0:02:28.7]}
14. Qf3 {[%clk 0:02:04.3]} 14... Kb8 {[%clk 0:02:21.8]} 15. Rfe1 {[%clk
0:02:02.6]} 15... Rg8 {[%clk 0:02:19.8]} 16. a4 {[%clk 0:01:59]} 16... Qd6
{[%clk 0:02:15.2]} 17. Qxf6 {[%clk 0:01:51.7]} 17... Qd5 {[%clk 0:02:10.6]} 18.
g3 {[%clk 0:01:41.8]} 18... Rg6 {[%clk 0:02:02.8]} 19. Qh4 {[%clk 0:01:35.3]}
19... Na5 {[%clk 0:01:58]} 20. Re5 {[%clk 0:01:16.3]} 20... Qd6 {[%clk
0:01:39.2]} 21. Ne4 {[%clk 0:01:15.8]} 1-0

[Event "*** Titled Tuesday Blitz"]
[Site "Chess.com"]
[Date "2020.10.27"]
[Round "5"]
[White "Chessalary"]
[Black "Kavyev_Ruslan"]
[Result "0-1"]
[WhiteElo "2396"]
[BlackElo "2578"]
[TimeControl "180+1"]
[EndTime "10:53:18 PDT"]
[Termination "Kavyev_Ruslan won on time"]

1. e4 {[%clk 0:03:00.9]} 1... c5 {[%clk 0:02:57.9]} 2. Nf3 {[%clk 0:03:01]} 2...
d6 {[%clk 0:02:54.7]} 3. d4 {[%clk 0:03:01.4]} 3... cxd4 {[%clk 0:02:55.6]} 4.
Nxd4 {[%clk 0:03:02]} 4... Nf6 {[%clk 0:02:50.3]} 5. Nc3 {[%clk 0:03:02.2]} 5...
a6 {[%clk 0:02:50.9]} 6. Bc4 {[%clk 0:03:02.7]} 6... e6 {[%clk 0:02:51]} 7. Bb3
{[%clk 0:03:03.3]} 7... b5 {[%clk 0:02:51.5]} 8. O-O {[%clk 0:03:02.4]} 8... Be7
{[%clk 0:02:51.2]} 9. Qf3 {[%clk 0:03:01.2]} 9... Qc7 {[%clk 0:02:51.8]} 10. Qg3
{[%clk 0:03:01.8]} 10... O-O {[%clk 0:02:52.3]} 11. Bh6 {[%clk 0:03:02.3]} 11...
Ne8 {[%clk 0:02:53]} 12. Nce2 {[%clk 0:02:59.1]} 12... Bd7 {[%clk 0:02:53.2]}
13. Rad1 {[%clk 0:02:58.2]} 13... Nc6 {[%clk 0:02:53.4]} 14. Kh1 {[%clk
0:02:55]} 14... Kh8 {[%clk 0:02:50.9]} 15. Bg5 {[%clk 0:02:54.3]} 15... Nf6
{[%clk 0:02:49.9]} 16. Bxf6 {[%clk 0:02:50.2]} 16... Bxf6 {[%clk 0:02:50.1]} 17.
Nxc6 {[%clk 0:02:49.2]} 17... Bxc6 {[%clk 0:02:51]} 18. f3 {[%clk 0:02:39.3]}
18... Rfd8 {[%clk 0:02:44.9]} 19. c3 {[%clk 0:02:37.3]} 19... a5 {[%clk
0:02:42.1]} 20. Bc2 {[%clk 0:02:35.3]} 20... b4 {[%clk 0:02:41.9]} 21. Qh3
{[%clk 0:00:42.5]} 21... h6 {[%clk 0:02:40.4]} 22. Nf4 {[%clk 0:00:29.6]} 22...
bxc3 {[%clk 0:02:38.8]} 23. Nh5 {[%clk 0:00:16.8]} 23... Qe7 {[%clk 0:02:38.7]}
24. Nxf6 {[%clk 0:00:10.2]} 24... Qxf6 {[%clk 0:02:39.6]} 0-1

[Event "*** Titled Tuesday Blitz"]
[Site "Chess.com"]
[Date "2020.10.27"]
[Round "5"]
[White "Lion-Al-Messi"]
[Black "Colombiano07"]
[Result "1-0"]
[WhiteElo "2523"]
[BlackElo "2291"]
[TimeControl "180+1"]
[EndTime "10:53:45 PDT"]
[Termination "Lion-Al-Messi won by resignation"]

1. e4 {[%clk 0:03:00.9]} 1... e6 {[%clk 0:02:57]} 2. d4 {[%clk 0:03:00.6]} 2...
d5 {[%clk 0:02:57]} 3. exd5 {[%clk 0:03:01.5]} 3... exd5 {[%clk 0:02:57.1]} 4.
Bd3 {[%clk 0:03:02.1]} 4... Nc6 {[%clk 0:02:57.6]} 5. c3 {[%clk 0:03:01.9]} 5...
Bd6 {[%clk 0:02:56.3]} 6. Nf3 {[%clk 0:03:01.7]} 6... Bg4 {[%clk 0:02:56]} 7.
O-O {[%clk 0:03:02.3]} 7... Qd7 {[%clk 0:02:54.1]} 8. Nbd2 {[%clk 0:03:02.6]}
8... Nge7 {[%clk 0:02:53.7]} 9. Re1 {[%clk 0:03:02]} 9... O-O {[%clk 0:02:51.7]}
10. Nf1 {[%clk 0:03:02.3]} 10... Rae8 {[%clk 0:02:50.9]} 11. Ne3 {[%clk
0:03:02.6]} 11... Bh5 {[%clk 0:02:50.4]} 12. h3 {[%clk 0:03:02.6]} 12... Bg6
{[%clk 0:02:50.4]} 13. Ng4 {[%clk 0:03:01.8]} 13... Bxd3 {[%clk 0:02:49.1]} 14.
Qxd3 {[%clk 0:03:02.7]} 14... Qf5 {[%clk 0:02:49.7]} 15. Qf1 {[%clk 0:02:59.2]}
15... Ng6 {[%clk 0:02:41.8]} 16. Be3 {[%clk 0:02:56.6]} 16... h5 {[%clk
0:02:39]} 17. Ngh2 {[%clk 0:02:56.8]} 17... Re7 {[%clk 0:02:35.6]} 18. Rad1
{[%clk 0:02:54.3]} 18... Rfe8 {[%clk 0:02:35.6]} 19. Qb5 {[%clk 0:02:52.8]}
19... Nd8 {[%clk 0:02:30.5]} 20. Nf1 {[%clk 0:02:45.9]} 20... c6 {[%clk
0:02:30.2]} 21. Qa4 {[%clk 0:02:42.4]} 21... b5 {[%clk 0:02:26.8]} 22. Qb3
{[%clk 0:02:39.8]} 22... Ne6 {[%clk 0:02:22.5]} 23. Rd2 {[%clk 0:02:34.1]} 23...
Ngf4 {[%clk 0:02:13.7]} 24. Ng3 {[%clk 0:02:33.6]} 24... Qg6 {[%clk 0:02:12.8]}
25. Qd1 {[%clk 0:02:27.7]} 25... Nxh3+ {[%clk 0:01:48.3]} 26. gxh3 {[%clk
0:02:24.7]} 26... Bxg3 {[%clk 0:01:48.4]} 27. fxg3 {[%clk 0:02:24.7]} 27...
Qxg3+ {[%clk 0:01:49.3]} 28. Rg2 {[%clk 0:02:24.1]} 28... Qxh3 {[%clk
0:01:48.2]} 29. Ne5 {[%clk 0:02:11.8]} 29... c5 {[%clk 0:00:59.5]} 30. dxc5
{[%clk 0:02:06.7]} 30... Nf4 {[%clk 0:00:57.6]} 31. Bxf4 {[%clk 0:01:54.1]}
31... Qf5 {[%clk 0:00:53.6]} 32. Bh2 {[%clk 0:01:48]} 32... f6 {[%clk
0:00:47.7]} 33. Qxd5+ {[%clk 0:01:47.6]} 33... Kh7 {[%clk 0:00:44.6]} 34. Rf1
{[%clk 0:01:45.7]} 1-0

[Event "*** Titled Tuesday Blitz"]
[Site "Chess.com"]
[Date "2020.10.27"]
[Round "5"]
[White "davigator"]
[Black "Deepweb2020"]
[Result "0-1"]
[WhiteElo "2372"]
[BlackElo "2238"]
[TimeControl "180+1"]
[EndTime "10:53:52 PDT"]
[Termination "Deepweb2020 won by checkmate"]

1. e4 {[%clk 0:03:00.9]} 1... e5 {[%clk 0:02:57.6]} 2. Nf3 {[%clk 0:03:00.1]}
2... Nc6 {[%clk 0:02:56.3]} 3. Bb5 {[%clk 0:02:59]} 3... a6 {[%clk 0:02:52.5]}
4. Ba4 {[%clk 0:02:58]} 4... Nf6 {[%clk 0:02:51.3]} 5. O-O {[%clk 0:02:57.8]}
5... b5 {[%clk 0:02:49.3]} 6. Bb3 {[%clk 0:02:56.9]} 6... Bc5 {[%clk 0:02:48.4]}
7. c3 {[%clk 0:02:55.8]} 7... d6 {[%clk 0:02:46.3]} 8. d4 {[%clk 0:02:55.4]}
8... Bb6 {[%clk 0:02:44.3]} 9. a4 {[%clk 0:02:55.3]} 9... Rb8 {[%clk 0:02:42.9]}
10. Na3 {[%clk 0:02:54.1]} 10... O-O {[%clk 0:02:40.6]} 11. h3 {[%clk
0:02:53.1]} 11... Ba7 {[%clk 0:02:32.6]} 12. Re1 {[%clk 0:02:42.8]} 12... Re8
{[%clk 0:02:26.6]} 13. Ng5 {[%clk 0:02:39.9]} 13... Re7 {[%clk 0:02:24.8]} 14.
dxe5 {[%clk 0:02:39.8]} 14... Nxe5 {[%clk 0:02:19.4]} 15. Be3 {[%clk 0:02:31.7]}
15... Bxe3 {[%clk 0:02:17.3]} 16. Rxe3 {[%clk 0:02:32.2]} 16... bxa4 {[%clk
0:02:12]} 17. Bxa4 {[%clk 0:02:16.2]} 17... Rxb2 {[%clk 0:02:11.3]} 18. f4
{[%clk 0:02:13.1]} 18... Ng6 {[%clk 0:02:08.6]} 19. g3 {[%clk 0:01:57]} 19... h6
{[%clk 0:01:53.9]} 20. Qc1 {[%clk 0:01:53.8]} 20... Rb8 {[%clk 0:01:39]} 21. e5
{[%clk 0:01:44.3]} 21... dxe5 {[%clk 0:01:23.9]} 22. fxe5 {[%clk 0:01:20.9]}
22... Nxe5 {[%clk 0:01:16.6]} 23. Nf3 {[%clk 0:01:16.2]} 23... Nxf3+ {[%clk
0:01:14.1]} 24. Rxf3 {[%clk 0:01:16.3]} 24... Bxh3 {[%clk 0:01:08.7]} 25. Nc4
{[%clk 0:01:14]} 25... Qd5 {[%clk 0:01:03.2]} 26. Rf4 {[%clk 0:01:11.8]} 26...
Qg2# {[%clk 0:00:57.8]} 0-1

[Event "*** Titled Tuesday Blitz"]
[Site "Chess.com"]
[Date "2020.10.27"]
[Round "5"]
[White "VladimirBelous"]
[Black "Casper_Schoppen"]
[Result "0-1"]
[WhiteElo "2838"]
[BlackElo "2969"]
[TimeControl "180+1"]
[EndTime "10:53:54 PDT"]
[Termination "Casper_Schoppen won by checkmate"]

1. Nf3 {[%clk 0:03:00.9]} 1... Nf6 {[%clk 0:02:59.1]} 2. c4 {[%clk 0:03:00.9]}
2... e6 {[%clk 0:02:56]} 3. g3 {[%clk 0:03:00.6]} 3... d5 {[%clk 0:02:55.6]} 4.
Bg2 {[%clk 0:03:01.5]} 4... Be7 {[%clk 0:02:53.5]} 5. O-O {[%clk 0:03:01]} 5...
O-O {[%clk 0:02:53.5]} 6. b3 {[%clk 0:03:01.4]} 6... b6 {[%clk 0:02:51.3]} 7.
Bb2 {[%clk 0:03:01.6]} 7... Bb7 {[%clk 0:02:51.1]} 8. cxd5 {[%clk 0:02:50.9]}
8... exd5 {[%clk 0:02:50.1]} 9. d4 {[%clk 0:02:45.9]} 9... c5 {[%clk 0:02:47.8]}
10. dxc5 {[%clk 0:02:40.9]} 10... bxc5 {[%clk 0:02:47.3]} 11. Nh4 {[%clk
0:02:40.4]} 11... Qd7 {[%clk 0:02:28.3]} 12. Nc3 {[%clk 0:02:36.2]} 12... d4
{[%clk 0:02:22.6]} 13. Na4 {[%clk 0:02:31.3]} 13... Bxg2 {[%clk 0:02:21.3]} 14.
Nxg2 {[%clk 0:02:32.2]} 14... Na6 {[%clk 0:02:18.8]} 15. Rc1 {[%clk 0:02:30.5]}
15... Rac8 {[%clk 0:02:11.2]} 16. Nf4 {[%clk 0:02:16.9]} 16... Bd6 {[%clk
0:02:09.1]} 17. Nd3 {[%clk 0:02:10.4]} 17... Rfe8 {[%clk 0:02:06.5]} 18. Re1
{[%clk 0:02:01.3]} 18... Qh3 {[%clk 0:02:04.1]} 19. f3 {[%clk 0:01:45.5]} 19...
Bxg3 {[%clk 0:01:34.5]} 20. hxg3 {[%clk 0:01:46.4]} 20... Qxg3+ {[%clk 0:01:34]}
21. Kh1 {[%clk 0:01:46.9]} 21... Ng4 {[%clk 0:01:29.1]} 22. fxg4 {[%clk
0:01:38.9]} 22... Rc6 {[%clk 0:01:26]} 23. Qd2 {[%clk 0:01:31.6]} 23... Re3
{[%clk 0:01:21.5]} 24. Qxe3 {[%clk 0:01:16.2]} 24... dxe3 {[%clk 0:01:20.2]} 25.
g5 {[%clk 0:00:55.3]} 25... Qxg5 {[%clk 0:01:14.7]} 26. Bxg7 {[%clk 0:00:49.5]}
26... Kxg7 {[%clk 0:01:14.2]} 27. Rg1 {[%clk 0:00:48.8]} 27... Rh6# {[%clk
0:01:13.8]} 0-1

[Event "*** Titled Tuesday Blitz"]
[Site "Chess.com"]
[Date "2020.10.27"]
[Round "5"]
[White "Triumphmate"]
[Black "Roza_Idrisova"]
[Result "1-0"]
[WhiteElo "2412"]
[BlackElo "2214"]
[TimeControl "180+1"]
[EndTime "10:53:59 PDT"]
[Termination "Triumphmate won by resignation"]

1. e4 {[%clk 0:03:00.9]} 1... c6 {[%clk 0:02:59.6]} 2. Nf3 {[%clk 0:03:01.2]}
2... d5 {[%clk 0:03:00.1]} 3. exd5 {[%clk 0:03:02.1]} 3... cxd5 {[%clk
0:03:00.1]} 4. d4 {[%clk 0:03:03]} 4... Nc6 {[%clk 0:03:00.4]} 5. Bd3 {[%clk
0:03:03.6]} 5... Nf6 {[%clk 0:03:00.4]} 6. c3 {[%clk 0:03:04.5]} 6... Bg4 {[%clk
0:03:00.3]} 7. O-O {[%clk 0:03:05.4]} 7... e6 {[%clk 0:03:00.1]} 8. Be3 {[%clk
0:03:05.9]} 8... Be7 {[%clk 0:03:00]} 9. Nbd2 {[%clk 0:03:06.3]} 9... O-O {[%clk
0:03:00]} 10. Qc2 {[%clk 0:03:06.1]} 10... Rc8 {[%clk 0:02:58.9]} 11. a3 {[%clk
0:03:06]} 11... a6 {[%clk 0:02:56.6]} 12. Rae1 {[%clk 0:03:06.1]} 12... b5
{[%clk 0:02:54.8]} 13. Qb1 {[%clk 0:03:05.9]} 13... Na5 {[%clk 0:02:54.4]} 14.
Ne5 {[%clk 0:03:05.4]} 14... Bh5 {[%clk 0:02:52.3]} 15. f4 {[%clk 0:03:04.7]}
15... Nc4 {[%clk 0:02:50.6]} 16. Ndxc4 {[%clk 0:03:05.1]} 16... dxc4 {[%clk
0:02:37.1]} 17. Bc2 {[%clk 0:03:01.1]} 17... Bg6 {[%clk 0:02:35.3]} 18. f5
{[%clk 0:03:00.2]} 18... exf5 {[%clk 0:02:34.9]} 19. Bxf5 {[%clk 0:03:01.1]}
19... Bxf5 {[%clk 0:02:32.1]} 20. Qxf5 {[%clk 0:03:01.1]} 20... Nd5 {[%clk
0:02:16.3]} 21. Bd2 {[%clk 0:02:58.6]} 21... Bd6 {[%clk 0:02:01.2]} 22. Nxf7
{[%clk 0:02:56.7]} 22... Qh4 {[%clk 0:01:17.4]} 23. g3 {[%clk 0:02:23.6]} 23...
Bxg3 {[%clk 0:01:09.5]} 24. hxg3 {[%clk 0:02:22.3]} 24... Qxg3+ {[%clk
0:01:08.4]} 25. Kh1 {[%clk 0:02:22.4]} 25... Qh4+ {[%clk 0:00:57.2]} 26. Kg2
{[%clk 0:02:21.7]} 26... Nf6 {[%clk 0:00:45.9]} 27. Ng5 {[%clk 0:02:07.9]} 27...
h6 {[%clk 0:00:38.1]} 28. Nf3 {[%clk 0:01:57.3]} 28... Qg4+ {[%clk 0:00:33.6]}
29. Qxg4 {[%clk 0:01:56.7]} 29... Nxg4 {[%clk 0:00:33.7]} 30. Ne5 {[%clk
0:01:56.7]} 30... Nf6 {[%clk 0:00:28.6]} 31. Ng6 {[%clk 0:01:54.5]} 1-0

[Event "*** Titled Tuesday Blitz"]
[Site "Chess.com"]
[Date "2020.10.27"]
[Round "5"]
[White "Harsha_Bharathakoti"]
[Black "PSvidler"]
[Result "1-0"]
[WhiteElo "2829"]
[BlackElo "2916"]
[TimeControl "180+1"]
[EndTime "10:54:05 PDT"]
[Termination "Harsha_Bharathakoti won by resignation"]

1. d4 {[%clk 0:03:00.6]} 1... Nf6 {[%clk 0:02:59]} 2. c4 {[%clk 0:03:00.7]} 2...
g6 {[%clk 0:02:58.1]} 3. Nc3 {[%clk 0:03:00.4]} 3... d5 {[%clk 0:02:58]} 4. cxd5
{[%clk 0:03:01.3]} 4... Nxd5 {[%clk 0:02:57.4]} 5. Bd2 {[%clk 0:03:01.7]} 5...
Nb6 {[%clk 0:02:53.9]} 6. Nf3 {[%clk 0:02:59.1]} 6... Bg7 {[%clk 0:02:53.8]} 7.
Bg5 {[%clk 0:02:59.7]} 7... h6 {[%clk 0:02:51]} 8. Bh4 {[%clk 0:02:57.2]} 8...
c5 {[%clk 0:02:46.5]} 9. dxc5 {[%clk 0:02:36.5]} 9... N6d7 {[%clk 0:02:46.1]}
10. e3 {[%clk 0:01:56.1]} 10... O-O {[%clk 0:02:45.9]} 11. Rc1 {[%clk
0:01:53.6]} 11... Nc6 {[%clk 0:02:39.2]} 12. Bb5 {[%clk 0:01:53.6]} 12... g5
{[%clk 0:02:38]} 13. Bg3 {[%clk 0:01:53.2]} 13... Nxc5 {[%clk 0:02:37.9]} 14.
O-O {[%clk 0:01:46.2]} 14... Bf5 {[%clk 0:02:23.4]} 15. Qd5 {[%clk 0:00:59.8]}
15... Qxd5 {[%clk 0:01:34.7]} 16. Nxd5 {[%clk 0:01:00.7]} 16... e6 {[%clk
0:01:34.9]} 17. Nc7 {[%clk 0:00:42.1]} 17... Ne4 {[%clk 0:01:34.6]} 18. Nxa8
{[%clk 0:00:42]} 18... Rxa8 {[%clk 0:01:35.5]} 19. Bxc6 {[%clk 0:00:40.9]} 19...
bxc6 {[%clk 0:01:35.4]} 20. Nd4 {[%clk 0:00:40.6]} 20... c5 {[%clk 0:01:23.2]}
21. Nxf5 {[%clk 0:00:40.3]} 21... exf5 {[%clk 0:01:24.1]} 22. Rc2 {[%clk
0:00:37.8]} 22... Rd8 {[%clk 0:01:20.5]} 23. f3 {[%clk 0:00:32.4]} 23... Nxg3
{[%clk 0:01:19.8]} 24. hxg3 {[%clk 0:00:33.3]} 24... Bf8 {[%clk 0:01:18.8]} 25.
Kf2 {[%clk 0:00:32.6]} 25... Ra8 {[%clk 0:01:17]} 26. Rd1 {[%clk 0:00:32]} 1-0

[Event "*** Titled Tuesday Blitz"]
[Site "Chess.com"]
[Date "2020.10.27"]
[Round "5"]
[White "VitaliyBernadskiy"]
[Black "kingofthenil"]
[Result "1-0"]
[WhiteElo "2754"]
[BlackElo "2477"]
[TimeControl "180+1"]
[EndTime "10:54:14 PDT"]
[Termination "VitaliyBernadskiy won by resignation"]

1. e4 {[%clk 0:03:00.9]} 1... Nc6 {[%clk 0:02:59.9]} 2. d4 {[%clk 0:02:53.2]}
2... d5 {[%clk 0:03:00.8]} 3. e5 {[%clk 0:02:50.4]} 3... Bf5 {[%clk 0:03:00.6]}
4. c3 {[%clk 0:02:50.2]} 4... e6 {[%clk 0:03:00.6]} 5. f4 {[%clk 0:02:50.3]}
5... h5 {[%clk 0:02:59.2]} 6. Nf3 {[%clk 0:02:50.5]} 6... Nh6 {[%clk 0:02:58.1]}
7. Be2 {[%clk 0:02:50.3]} 7... Ne7 {[%clk 0:02:58.1]} 8. Nbd2 {[%clk 0:02:50.3]}
8... Ng6 {[%clk 0:02:58.2]} 9. Nf1 {[%clk 0:02:50.1]} 9... Be4 {[%clk
0:02:54.4]} 10. Qb3 {[%clk 0:02:44.6]} 10... Be7 {[%clk 0:02:41.4]} 11. Ng3
{[%clk 0:02:39.5]} 11... Nf5 {[%clk 0:02:03.5]} 12. Qxb7 {[%clk 0:02:26.1]}
12... O-O {[%clk 0:01:24.8]} 13. Nxe4 {[%clk 0:02:25.1]} 13... Rb8 {[%clk
0:01:25.5]} 14. Nf6+ {[%clk 0:02:25.3]} 14... Bxf6 {[%clk 0:01:25.6]} 15. Qa6
{[%clk 0:02:20]} 15... Be7 {[%clk 0:01:12.1]} 16. Bd3 {[%clk 0:02:19.6]} 16...
Bh4+ {[%clk 0:00:48.8]} 17. g3 {[%clk 0:02:07.6]} 17... Rb6 {[%clk 0:00:36]} 18.
Qa4 {[%clk 0:02:05.5]} 18... Be7 {[%clk 0:00:26.8]} 19. Qc2 {[%clk 0:01:58.2]}
19... Qd7 {[%clk 0:00:21.8]} 20. b4 {[%clk 0:01:55]} 20... f6 {[%clk 0:00:17.5]}
21. O-O {[%clk 0:01:54.1]} 21... fxe5 {[%clk 0:00:17.7]} 22. Nxe5 {[%clk
0:01:53.6]} 22... Nxe5 {[%clk 0:00:17.6]} 23. fxe5 {[%clk 0:01:54.5]} 23... Rc6
{[%clk 0:00:05.3]} 24. Bb5 {[%clk 0:01:49.7]} 24... Nxd4 {[%clk 0:00:05.3]} 25.
Rxf8+ {[%clk 0:01:48.7]} 25... Bxf8 {[%clk 0:00:03.4]} 26. cxd4 {[%clk
0:01:48.7]} 26... Rxc2 {[%clk 0:00:01.6]} 27. Bxd7 {[%clk 0:01:49.6]} 27... Bxb4
{[%clk 0:00:01.6]} 28. Bxe6+ {[%clk 0:01:49.4]} 28... Kh8 {[%clk 0:00:02.1]} 29.
Rb1 {[%clk 0:01:48.2]} 29... Bc3 {[%clk 0:00:03]} 30. Rb8+ {[%clk 0:01:47.3]}
1-0

[Event "*** Titled Tuesday Blitz"]
[Site "Chess.com"]
[Date "2020.10.27"]
[Round "5"]
[White "RaunakSadhwani2005"]
[Black "penguingm1"]
[Result "1-0"]
[WhiteElo "2968"]
[BlackElo "2820"]
[TimeControl "180+1"]
[EndTime "10:54:18 PDT"]
[Termination "RaunakSadhwani2005 won by resignation"]

1. c4 {[%clk 0:03:00.9]} 1... e6 {[%clk 0:03:00.1]} 2. Nf3 {[%clk 0:03:00.6]}
2... d5 {[%clk 0:03:00]} 3. d4 {[%clk 0:03:00.3]} 3... Nf6 {[%clk 0:03:00.1]} 4.
g3 {[%clk 0:02:59.3]} 4... dxc4 {[%clk 0:02:59.7]} 5. Bg2 {[%clk 0:02:56.6]}
5... Nc6 {[%clk 0:03:00]} 6. O-O {[%clk 0:02:54.7]} 6... Rb8 {[%clk 0:03:00.1]}
7. e3 {[%clk 0:02:53.2]} 7... Be7 {[%clk 0:03:00.3]} 8. Qe2 {[%clk 0:02:43.7]}
8... b5 {[%clk 0:03:00]} 9. a4 {[%clk 0:02:41.6]} 9... a6 {[%clk 0:02:27.6]} 10.
axb5 {[%clk 0:02:40.6]} 10... axb5 {[%clk 0:02:28.5]} 11. Nfd2 {[%clk
0:02:39.2]} 11... Nb4 {[%clk 0:02:10.5]} 12. b3 {[%clk 0:02:35]} 12... cxb3
{[%clk 0:02:00.3]} 13. Nxb3 {[%clk 0:02:35.9]} 13... O-O {[%clk 0:02:00.1]} 14.
Bd2 {[%clk 0:02:33]} 14... Bb7 {[%clk 0:01:55]} 15. Bxb7 {[%clk 0:02:28.3]}
15... Rxb7 {[%clk 0:01:55.9]} 16. Rc1 {[%clk 0:02:26.9]} 16... Ne4 {[%clk
0:01:15]} 17. Nc3 {[%clk 0:02:25.7]} 17... Nxd2 {[%clk 0:01:09.2]} 18. Nxd2
{[%clk 0:02:26.4]} 18... c6 {[%clk 0:01:08.7]} 19. Nce4 {[%clk 0:02:19.9]} 19...
h6 {[%clk 0:00:56.7]} 20. Nb3 {[%clk 0:02:17.1]} 20... Qd5 {[%clk 0:00:51.1]}
21. Nec5 {[%clk 0:02:17.3]} 21... Bxc5 {[%clk 0:00:03.3]} 22. Nxc5 {[%clk
0:02:16.5]} 22... Rbb8 {[%clk 0:00:01.3]} 23. Qd2 {[%clk 0:02:10.3]} 23... Ra8
{[%clk 0:00:01.6]} 24. Qxb4 {[%clk 0:02:10.3]} 24... Qf3 {[%clk 0:00:02]} 25.
Qe1 {[%clk 0:02:05.1]} 25... b4 {[%clk 0:00:01.4]} 26. Qxb4 {[%clk 0:02:04.3]}
26... Rab8 {[%clk 0:00:02]} 27. Qd2 {[%clk 0:02:03.7]} 27... Rb5 {[%clk
0:00:02.2]} 28. Qd1 {[%clk 0:02:01.4]} 28... Qd5 {[%clk 0:00:02.1]} 29. Qc2
{[%clk 0:02:01.6]} 29... Rfb8 {[%clk 0:00:02.2]} 30. Rab1 {[%clk 0:01:59.6]}
30... Qf3 {[%clk 0:00:02.1]} 31. Rxb5 {[%clk 0:01:58.7]} 31... Rxb5 {[%clk
0:00:03]} 32. Qe4 {[%clk 0:01:56.7]} 32... Qh5 {[%clk 0:00:02.9]} 33. Qxc6
{[%clk 0:01:54.7]} 33... Rb2 {[%clk 0:00:03.4]} 34. Rf1 {[%clk 0:01:54.8]} 34...
Qe2 {[%clk 0:00:03.6]} 35. Qe8+ {[%clk 0:01:53.7]} 1-0